bitfinex/quotes_ETHUSD_20250725
["timestamp","ask_amount","ask_price","bid_price","bid_amount"]
[1753456817827,11.57025066,3635.9,3635.8,1e-08]
[1753456818034,11.94887599,3635.9,3635.8,1e-08]
[1753456818327,7.16087599,3635.9,3635.8,1e-08]
[1753456818641,6.70067599,3635.9,3635.8,1e-08]
[1753456818823,11.19467599,3635.9,3635.8,1e-08]
[1753456819529,11.65487599,3635.9,3635.8,1e-08]
[1753456819696,11.65387599,3635.9,3635.8,1e-08]
[1753456820031,11.79147599,3635.9,3635.8,1e-08]
[1753456820228,12.08547599,3635.9,3635.8,1e-08]
[1753456820431,11.33227599,3635.9,3635.8,1e-08]
[1753456820616,6.43795066,3635.9,3635.8,0.49770001]
[1753456820793,10.93195066,3635.9,3635.8,1e-08]
[1753456821502,3.1376,3635.9,3635.8,0.49770001]
[1753456821702,0.1376,3635.9,3635.8,0.92540001]
[1753456821886,4.6306,3635.9,3635.8,0.92540001]
[1753456822904,4.65808477,3635.9,3635.8,0.49770001]
[1753456823104,4.6306,3635.9,3635.8,0.49770001]
[1753456824006,4.6306,3635.9,3635.8,0.92540001]
[1753456824201,7.38095066,3635.9,3635.8,0.49770001]
[1753456824425,4.6306,3635.9,3635.8,0.49770001]
[1753456824903,6.601,3637.1,3635.9,0.7764]
[1753456825131,8.58224717,3638.6,3635.9,0.7764]
[1753456825132,0.0217,3637.9,3636.0,0.9254]
[1753456825433,0.1376,3637.1,3636.8,2.7496535]
[1753456825649,4.493,3637.0,3636.9,0.4977]
[1753456825813,0.1376,3637.1,3636.9,4.45139443]
[1753456826013,4.493,3637.0,3636.9,0.7764]
[1753456826404,7.493,3637.0,3636.9,0.7764]
[1753456826627,7.493,3637.0,3636.9,1.2741]
[1753456827141,4.493,3637.0,3636.9,4.45139443]
[1753456827637,4.493,3637.0,3636.9,5.1852683]
[1753456828035,0.1376,3637.1,3637.0,2.74951883]
[1753456828235,4.6296,3637.1,3637.0,0.9254]
[1753456828532,0.1376,3637.1,3637.0,3.67491883]
[1753456828733,4.6296,3637.1,3637.0,0.9254]
[1753456829237,4.6296,3637.1,3637.0,3.67491883]
[1753456829438,4.6296,3637.1,3637.0,0.9254]
[1753456829637,0.1376,3637.1,3637.0,0.9254]
[1753456829955,4.6286,3637.1,3637.0,0.9254]
[1753456830627,4.6286,3637.1,3637.0,3.67491883]
[1753456830812,0.1376,3637.1,3637.0,0.9254]
[1753456831009,4.6286,3637.1,3637.0,3.67491883]
[1753456831342,4.6286,3637.1,3637.0,0.9254]
[1753456831542,4.6276,3637.1,3637.0,0.9254]
[1753456831931,4.6276,3637.1,3637.0,3.67491883]
[1753456833142,2.74847279,3638.4,3637.0,4.39501748]
[1753456833314,6.604,3638.6,3637.8,2.74884423]
[1753456833517,0.1376,3637.8,3637.7,3.17668974]
[1753456833714,4.6266,3637.8,3637.7,3.17668974]
[1753456834114,4.6266,3637.8,3637.7,3.67438974]
[1753456834655,4.6256,3637.8,3637.7,3.67438974]
[1753456834815,0.4819,3639.1,3638.2,2.74861184]
[1753456835145,4.51548477,3639.0,3638.2,2.74861184]
[1753456835349,0.1376,3638.3,3638.1,0.4977]
[1753456835538,4.488,3638.2,3638.1,0.4977]
[1753456835918,4.488,3638.2,3638.1,3.24632522]
[1753456836116,4.97804477,3638.2,3637.2,0.4348]
[1753456836310,0.002,3637.8,3637.6,2.74906531]
[1753456836514,4.6276,3637.8,3637.5,3.24212445]
[1753456836732,4.6276,3637.8,3637.3,3.66028726]
[1753456836733,4.6276,3637.8,3637.6,0.493]
[1753456837110,4.6276,3637.8,3637.5,2.7491394]
[1753456837354,4.6276,3637.8,3637.7,0.493]
[1753456837753,5.09036,3637.8,3637.4,0.493]
[1753456837953,3.49838477,3637.7,3637.0,0.493]
[1753456838242,0.1376,3637.5,3637.0,0.493]
[1753456838442,4.487,3637.4,3637.1,0.9278]
[1753456838645,0.002,3637.8,3637.3,2.74923796]
[1753456838823,0.1396,3637.8,3637.6,3.58026531]
[1753456839025,0.002,3637.8,3637.7,2.74898974]
[1753456839256,0.002,3637.8,3637.7,3.67678974]
[1753456839868,0.002,3637.8,3637.7,0.9278]
[1753456840050,0.002,3637.8,3637.7,3.67678974]
[1753456840251,0.002,3637.8,3637.6,0.8312]
[1753456840576,0.4488,3637.7,3637.2,4.00633604]
[1753456840863,0.1376,3637.5,3637.3,0.493]
[1753456841059,0.1376,3637.5,3637.2,1.1988]
[1753456841269,0.1376,3637.5,3637.4,0.493]
[1753456845440,4.6216,3637.5,3637.4,0.493]
[1753456845839,2.74937467,3637.2,3637.0,0.1376]
[1753456846038,0.02748477,3637.1,3636.6,0.7962]
[1753456846239,4.6206,3637.0,3636.6,0.7962]
[1753456846447,4.6206,3637.0,3636.7,3.2426922]
[1753456846672,4.6206,3637.0,3636.8,0.493]
[1753456847130,0.02748477,3636.9,3636.6,0.7962]
[1753456847330,0.1376,3637.0,3636.9,0.493]
[1753456847531,4.6206,3637.0,3636.9,0.493]
[1753456847954,0.1376,3637.0,3636.9,0.493]
[1753456848155,4.6206,3637.0,3636.9,0.493]
[1753456849128,4.6206,3637.0,3636.6,1.724]
[1753456849328,0.02748477,3636.9,3636.7,0.493]
[1753456849735,4.6206,3637.0,3636.8,0.493]
[1753456849953,4.6206,3637.0,3636.9,0.493]
[1753456850354,4.6206,3637.0,3636.6,1.231]
[1753456850535,0.02748477,3636.9,3636.7,0.493]
[1753456850731,0.02748477,3636.9,3636.8,0.493]
[1753456851044,2.74995331,3636.5,3636.2,0.8098]
[1753456851342,4.50948477,3636.4,3635.8,1e-08]
[1753456851644,0.1376,3636.2,3635.8,1e-08]
[1753456851845,0.02748477,3636.1,3635.8,1e-08]
[1753456852048,4.481,3636.0,3635.8,1e-08]
[1753456852239,0.02748477,3636.1,3635.8,0.49300001]
[1753456852441,4.481,3636.0,3635.9,3.24335066]
[1753456852653,4.6186,3636.2,3636.0,2.75026753]
[1753456852853,4.6186,3636.2,3636.1,0.493]
[1753456853574,4.6186,3636.2,3635.8,1e-08]
[1753456853741,0.02748477,3636.1,3635.8,2.75042446]
[1753456853939,0.02748477,3636.1,3635.8,0.49300001]
[1753456854135,0.02748477,3636.1,3635.8,3.24342319]
[1753456854581,4.6186,3636.2,3635.8,3.24342319]
[1753456854789,4.6186,3636.2,3635.8,2.75042319]
[1753456855078,0.1376,3636.2,3636.0,2.75024688]
[1753456855239,4.481,3636.3,3636.1,0.9278]
[1753456855449,4.6186,3636.4,3636.1,0.4348]
[1753456855671,4.6186,3636.4,3636.2,0.493]
[1753456855872,0.02748477,3636.3,3635.8,1e-08]
[1753456856074,0.1376,3636.1,3635.8,1e-08]
[1753456856275,4.50748477,3636.0,3635.8,1e-08]
[1753456856478,4.48,3636.0,3635.8,0.49300001]
[1753456857062,4.50748477,3636.0,3635.8,0.49300001]
[1753456857376,2.75035066,3635.9,3635.8,1e-08]
[1753456857578,2.91543543,3635.9,3635.8,1e-08]
[1753456858076,0.16508477,3635.9,3635.8,1e-08]
[1753456858467,4.64508477,3635.9,3635.8,1e-08]
[1753456858700,4.64408477,3635.9,3635.8,1e-08]
[1753456859059,4.6166,3635.9,3635.8,0.49300001]
[1753456859756,4.6166,3635.9,3635.8,1e-08]
[1753456859958,11.85952566,3635.9,3635.8,1e-08]
[1753456860383,4.479,3635.9,3635.8,0.49300001]
[1753456860786,7.22935066,3635.9,3635.8,1e-08]
[1753456860990,7.70025066,3635.9,3635.8,1e-08]
[1753456861285,10.98525066,3635.9,3635.8,1e-08]
[1753456861684,7.479,3635.9,3635.8,1e-08]
[1753456861889,12.30485066,3635.9,3635.8,1e-08]
[1753456862099,3.30065328,3635.5,3635.4,1e-08]
[1753456862383,3.30065328,3635.5,3635.3,0.001]
[1753456862384,6.32242894,3635.4,3635.3,1e-08]
[1753456862552,7.07832894,3635.4,3635.3,1e-08]
[1753456862985,11.55632894,3635.4,3635.3,1e-08]
[1753456863173,12.56932249,3635.4,3635.3,1e-08]
[1753456863376,2.77265595,3635.1,3635.0,1e-08]
[1753456863582,10.27814072,3635.1,3635.0,1e-08]
[1753456863754,11.00655595,3635.1,3635.0,1e-08]
[1753456864357,11.55655595,3635.1,3635.0,1e-08]
[1753456864584,12.50603189,3635.1,3635.0,1e-08]
[1753456864758,12.22103189,3635.1,3635.0,1e-08]
[1753456865155,12.50603189,3635.1,3635.0,1e-08]
[1753456865790,2.77303439,3634.6,3634.5,0.001]
[1753456866091,10.82851916,3634.6,3634.5,0.001]
[1753456866291,7.33602794,3634.6,3634.5,0.001]
[1753456866678,11.81402794,3634.6,3634.5,0.001]
[1753456866993,12.24292794,3634.6,3634.5,0.001]
[1753456867194,7.33602794,3634.6,3634.5,0.001]
[1753456867361,5.75133439,3634.6,3634.5,0.4594]
[1753456867689,3.0,3634.6,3634.5,0.4594]
[1753456867891,7.478,3634.6,3634.5,0.4594]
[1753456868192,3.0,3634.6,3634.5,0.4594]
[1753456868490,4.477,3634.9,3634.8,2.75111621]
[1753456868688,4.477,3635.0,3634.6,3.51016534]
[1753456868861,4.477,3635.0,3634.8,0.9308]
[1753456869063,4.477,3635.0,3634.9,0.9308]
[1753456869873,4.477,3635.0,3634.9,0.4584]
[1753456870564,4.6146,3635.0,3634.9,0.4584]
[1753456870760,0.4289,3635.9,3634.9,3.68184315]
[1753456870985,0.1376,3635.2,3635.0,0.4584]
[1753456871186,4.476,3635.1,3635.0,0.4724]
[1753456871505,0.1376,3635.2,3635.0,0.4724]
[1753456871721,4.476,3635.1,3635.0,0.4724]
[1753456871882,0.1376,3635.2,3635.1,3.68175595]
[1753456872060,0.1376,3635.4,3635.3,3.5650872]
[1753456872264,4.476,3635.4,3635.3,4.63350461]
[1753456872505,0.1376,3635.8,3635.7,2.75050196]
[1753456872719,0.1376,3635.8,3635.6,2.75050814]
[1753456873021,0.285,3637.0,3635.7,0.7652]
[1753456873022,0.1355408,3637.0,3635.7,0.7652]
[1753456873164,7.22559443,3636.9,3636.2,2.75010874]
[1753456873512,5.48923417,3636.9,3636.3,3.20844812]
[1753456873736,0.1376,3636.6,3636.4,3.20836136]
[1753456873879,4.6126,3636.6,3636.5,4.48159687]
[1753456874411,4.475,3636.8,3636.7,2.74974564]
[1753456874765,4.475,3636.8,3636.7,3.68054564]
[1753456875101,0.1376,3636.9,3636.5,0.8009]
[1753456875306,0.1376,3636.7,3636.5,0.8009]
[1753456875482,0.59886,3636.7,3636.5,0.8009]
[1753456875675,0.59886,3636.7,3636.1,0.8009]
[1753456876076,0.59886,3636.7,3636.3,2.75004573]
[1753456876077,0.1376,3636.5,3636.3,2.75004573]
[1753456876281,4.474,3636.4,3636.2,2.75010281]
[1753456876488,4.474,3636.4,3636.1,3.55108588]
[1753456876890,4.474,3636.4,3636.2,3.68091235]
[1753456877093,4.473,3636.3,3636.2,2.75011235]
[1753456877693,4.473,3636.3,3636.2,3.68091235]
[1753456877884,4.473,3636.3,3636.2,0.9308]
[1753456878503,4.473,3636.3,3636.2,0.4584]
[1753456879602,2.8875512,3636.5,3636.1,0.8009]
[1753456879803,2.8875512,3636.5,3636.1,1.2593]
[1753456879804,4.472,3636.3,3636.1,1.2593]
[1753456880110,5.2107036,3636.3,3636.1,0.4584]
[1753456880406,0.8515,3636.2,3635.1,1.2759]
[1753456880564,0.8515,3636.2,3634.5,0.001]
[1753456880565,2.75079701,3635.4,3635.0,0.1376]
[1753456880768,7.38696277,3635.3,3634.8,0.1376]
[1753456880967,7.38696277,3635.3,3634.8,0.4584]
[1753456880968,4.471,3635.2,3634.8,0.4584]
[1753456881205,0.02748477,3635.1,3634.8,0.4584]
[1753456881595,2.75110732,3634.9,3634.5,0.001]
[1753456881907,0.1376,3634.6,3634.5,0.001]
[1753456882911,2.88893439,3634.6,3634.5,0.001]
[1753456883279,7.78883439,3634.6,3634.5,0.001]
[1753456883811,7.35993439,3634.6,3634.5,0.001]
[1753456885312,8.10704718,3634.6,3634.5,0.001]
[1753456885808,4.6076,3634.6,3634.5,0.4594]
[1753456886176,4.47,3634.6,3634.5,0.9318]
[1753456886481,0.1376,3634.9,3634.6,3.57680866]
[1753456886784,4.47,3634.8,3634.7,0.9308]
[1753456887115,4.47,3634.8,3634.7,0.4584]
[1753456887410,2.75133439,3634.6,3634.5,0.001]
[1753456887578,2.91641916,3634.6,3634.5,0.001]
[1753456887778,3.34531916,3634.6,3634.5,0.001]
[1753456888074,4.6066,3634.6,3634.5,0.4594]
[1753456888404,4.469,3634.6,3634.5,0.9318]
[1753456888583,0.1376,3634.7,3634.5,3.68319333]
[1753456888908,0.1376,3635.3,3634.8,0.1376]
[1753456889109,0.1376,3635.3,3635.0,2.7509677]
[1753456889313,4.469,3635.2,3635.1,0.4584]
[1753456889608,7.21995107,3635.2,3634.7,1.216]
[1753456889915,0.1376,3635.0,3634.5,0.001]
[1753456890082,0.1376,3634.6,3634.5,0.001]
[1753456890285,7.35793439,3634.6,3634.5,0.001]
[1753456890976,4.6066,3634.6,3634.5,0.4594]
[1753456891379,2.75066378,3635.5,3634.5,0.9318]
[1753456891612,0.0217,3635.8,3634.5,0.9318]
[1753456891613,4.74306638,3635.4,3634.6,0.596]
[1753456891818,4.468,3635.3,3634.7,0.95831258]
[1753456891979,4.468,3635.3,3635.0,0.1376]
[1753456892185,4.468,3635.3,3635.1,0.9308]
[1753456892395,4.468,3635.3,3635.2,0.4584]
[1753456892587,4.468,3635.3,3635.2,3.20928028]
[1753456893201,4.468,3635.3,3635.2,3.68168028]
[1753456893405,4.468,3635.3,3635.2,0.4584]
[1753456893607,4.468,3635.3,3635.2,3.20928028]
[1753456893792,4.468,3635.3,3635.2,0.4584]
[1753456894194,2.88819781,3635.6,3635.2,0.4584]
[1753456894401,4.467,3635.5,3635.2,0.4584]
[1753456894719,4.467,3635.5,3635.2,2.75087736]
[1753456894922,4.467,3635.5,3635.3,0.4584]
[1753456896330,4.43579306,3635.5,3635.3,0.4584]
[1753456896536,4.43579306,3635.5,3635.4,3.22062894]
[1753456896715,3.0,3635.9,3635.4,3.22055858]
[1753456896905,4.466,3635.8,3635.5,0.4699]
[1753456897105,4.466,3635.8,3635.5,3.22053924]
[1753456897334,4.466,3635.7,3635.5,3.22053924]
[1753456897560,4.466,3635.7,3635.5,0.4699]
[1753456897902,3.0,3635.9,3635.6,0.929]
[1753456898111,4.466,3635.8,3635.6,1.0666]
[1753456898313,4.466,3635.8,3635.7,0.4699]
[1753456898714,3.0,3635.9,3635.7,3.22040196]
[1753456898920,6.604,3636.2,3635.9,2.75028343]
[1753456899152,4.465,3636.1,3636.0,0.4699]
[1753456899350,4.465,3636.1,3636.0,3.67927502]
[1753456899538,4.465,3636.1,3636.0,4.43777502]
[1753456899846,0.002,3636.3,3636.0,4.43770331]
[1753456900150,4.465,3636.1,3636.0,0.7585]
[1753456900644,4.465,3636.1,3635.8,0.6075]
[1753456900847,4.465,3636.1,3635.8,3.3579205]
[1753456901214,4.465,3636.1,3635.9,2.75034695]
[1753456901428,0.002,3636.3,3636.2,2.75012375]
[1753456901855,0.002,3636.3,3636.2,3.81672375]
[1753456902570,0.002,3636.3,3636.2,3.84422498]
[1753456902763,0.002,3636.3,3636.2,4.64272498]
[1753456902948,1e-08,3636.3,3636.2,4.64272498]
[1753456903263,0.002,3636.7,3636.6,3.54832126]
[1753456903460,0.002,3636.7,3636.6,3.57581947]
[1753456903659,0.002,3636.7,3636.6,4.64241947]
[1753456904048,0.002,3636.7,3636.6,4.61492126]
[1753456904227,0.002,3636.7,3636.6,4.15582126]
[1753456904960,0.002,3636.7,3636.6,4.61492126]
[1753456905367,0.002,3636.7,3636.6,5.35140434]
[1753456905735,0.002,3636.7,3636.6,5.37890255]
[1753456906186,0.002,3636.7,3636.6,14.01627715]
[1753456906470,0.002,3637.5,3637.4,2.74921647]
[1753456906681,1e-08,3637.5,3637.4,3.58210863]
[1753456906859,0.002,3638.3,3637.7,4.10438974]
[1753456907032,0.002,3638.3,3638.2,3.55401195]
[1753456907236,0.002,3638.3,3638.2,12.21887266]
[1753456907564,0.002,3638.3,3638.2,13.25798655]
[1753456907766,0.002,3638.3,3638.2,14.8586553]
[1753456907972,0.002,3638.3,3638.2,19.3186553]
[1753456908878,0.002,3639.3,3638.9,2.74808321]
[1753456909197,2.88508472,3639.7,3639.0,2.74800688]
[1753456909359,0.1376,3639.7,3639.1,2.74787041]
[1753456909695,0.1376,3639.7,3639.2,0.1376]
[1753456909854,2.88509148,3639.7,3639.2,0.1376]
[1753456910386,2.88513509,3639.7,3639.2,0.6075]
[1753456910577,2.74760635,3639.6,3639.2,0.1376]
[1753456910780,5.0644,3639.7,3639.2,0.1376]
[1753456911089,3.21645169,3639.5,3639.2,0.1376]
[1753456911300,3.21645169,3639.5,3638.5,0.1376]
[1753456911301,2.88538116,3639.3,3638.5,0.1376]
[1753456911456,2.88561006,3639.0,3638.5,0.1376]
[1753456911657,0.1376,3639.0,3638.5,0.1376]
[1753456911853,2.74808321,3638.9,3638.5,0.6075]
[1753456912058,0.1376,3639.0,3638.5,0.6075]
[1753456912260,0.16508477,3639.0,3638.5,0.6075]
[1753456912492,2.9131524,3639.0,3638.5,0.6075]
[1753456912858,0.4688,3639.5,3638.6,0.929]
[1753456913065,4.4796,3639.8,3638.9,0.1376]
[1753456913276,0.91888477,3639.7,3639.1,0.1376]
[1753456913579,2.74763626,3639.5,3639.1,0.1376]
[1753456913762,0.6064,3639.7,3639.1,0.1376]
[1753456913963,6.604,3640.1,3639.2,0.78947856]
[1753456914296,4.48348477,3640.0,3639.6,0.1376]
[1753456914498,4.95228477,3640.0,3639.6,0.1376]
[1753456914716,4.9248,3640.0,3639.6,0.1376]
[1753456915293,4.95228477,3640.0,3639.6,0.1376]
[1753456915498,7.67218424,3639.9,3639.6,0.1376]
[1753456915698,0.02748477,3639.8,3639.2,3.50980779]
[1753456915889,2.77488885,3639.8,3639.4,0.1376]
[1753456916193,3.21628994,3639.7,3639.4,0.1376]
[1753456916365,0.4688,3639.7,3639.1,2.74792785]
[1753456916567,0.02748477,3639.6,3639.2,0.1376]
[1753456916768,0.4688,3639.5,3639.2,0.1376]
[1753456916969,0.4688,3639.5,3639.2,2.88542423]
[1753456917192,0.16508477,3639.7,3639.2,0.1376]
[1753456917501,0.6064,3639.7,3639.2,2.88539096]
[1753456917896,0.1376,3639.7,3639.2,1.24696921]
[1753456918103,4.453,3639.6,3639.5,2.74763016]
[1753456918401,4.453,3639.6,3639.5,3.21753016]
[1753456918571,0.1376,3639.9,3639.5,3.21753016]
[1753456918903,0.1376,3639.9,3639.4,0.1376]
[1753456918904,4.453,3639.8,3639.4,2.88530374]
[1753456919073,4.453,3639.8,3639.5,2.74762105]
[1753456919378,4.453,3639.8,3639.6,2.74753556]
[1753456919574,0.1376,3639.9,3639.7,2.74740377]
[1753456919803,4.452,3639.8,3639.7,0.4699]
[1753456920004,4.452,3639.8,3639.6,0.1376]
[1753456920302,3.21627918,3639.7,3639.0,2.74795487]
[1753456920600,4.452,3639.6,3639.5,2.74763016]
[1753456920896,4.452,3639.6,3639.1,0.4591]
[1753456921070,4.452,3639.6,3639.5,0.1376]
[1753456921262,2.74766372,3639.5,3638.9,2.7480591]
[1753456921463,2.74770566,3639.4,3639.0,0.1376]
[1753456921675,0.02748477,3639.3,3638.9,0.1376]
[1753456921875,0.1376,3639.5,3638.9,0.6075]
[1753456922305,0.1376,3639.5,3638.9,3.35552432]
[1753456922608,2.74726185,3640.0,3639.0,0.8329325]
[1753456922609,2.74725319,3640.0,3639.0,0.8329325]
[1753456922804,4.451,3639.6,3639.5,2.74763016]
[1753456922995,4.451,3639.6,3639.2,0.1376]
[1753456923592,4.451,3639.6,3639.3,2.74776798]
[1753456923772,4.451,3639.6,3639.4,2.74763048]
[1753456923976,6.6276,3640.1,3639.6,2.74755467]
[1753456924213,4.5876,3640.0,3639.6,0.4699]
[1753456924513,4.5876,3640.0,3639.5,2.88519971]
[1753456924708,4.5876,3640.0,3639.6,2.74754309]
[1753456925120,0.1376,3640.0,3639.5,2.88521072]
[1753456925292,6.604,3640.1,3639.6,1.62396698]
[1753456925485,4.45,3639.9,3639.8,2.8850037]
[1753456925801,0.1376,3640.7,3640.0,2.88480623]
[1753456925992,4.449,3640.6,3640.1,2.74711885]
[1753456926193,0.4395,3640.6,3640.2,0.1376]
[1753456926412,4.449,3640.5,3640.2,0.1376]
[1753456926939,0.4395,3640.6,3640.2,0.1376]
[1753456927094,4.449,3640.5,3640.3,2.74697716]
[1753456927299,4.449,3640.5,3640.2,2.88467337]
[1753456927598,4.449,3640.5,3640.4,2.74695088]
[1753456927912,4.8885,3640.5,3640.0,12.74720347]
[1753456928226,5.0261,3640.5,3640.0,12.88480347]
[1753456928447,5.0261,3640.5,3640.1,2.74717601]
[1753456928608,4.5866,3640.5,3640.2,2.74709267]
[1753456928811,0.0236,3640.8,3640.2,2.7470903]
[1753456929007,0.0256,3641.2,3640.3,0.4732]
[1753456929230,4.448,3641.1,3640.6,0.1376]
[1753456929408,4.448,3641.1,3640.7,2.74670822]
[1753456929609,4.448,3641.1,3640.8,0.1376]
[1753456929931,4.448,3641.1,3640.2,1.61051385]
[1753456929932,0.1376,3640.9,3640.4,0.1376]
[1753456930108,0.46698477,3640.8,3640.4,0.1376]
[1753456930308,4.8865,3640.7,3640.0,10.0]
[1753456930536,2.88453095,3640.5,3640.0,10.1376]
[1753456931040,0.0236,3640.3,3640.0,10.0]
[1753456931334,2.88477727,3640.1,3640.0,10.0]
[1753456931539,0.1376,3640.1,3640.0,10.0]
[1753456931844,2.7703472,3640.7,3640.0,10.4732]
[1753456932002,0.1376,3640.5,3640.1,2.74717727]
[1753456932200,4.446,3640.4,3640.2,3.2202759]
[1753456932404,4.446,3640.3,3640.2,0.6108]
[1753456932801,4.91298477,3640.3,3640.0,10.0]
[1753456933025,0.1376,3640.1,3640.0,10.0]
[1753456933202,3.32427727,3640.1,3640.0,10.0]
[1753456933406,4.66611638,3640.1,3640.0,10.0]
[1753456933606,3.60927727,3640.1,3640.0,10.0]
[1753456934348,3.32427727,3640.1,3640.0,10.0]
[1753456935841,3.60927727,3640.1,3640.0,10.0]
[1753456936051,6.60927727,3640.1,3640.0,10.0]
[1753456936678,3.1376,3640.1,3640.0,10.0]
[1753456936855,10.32877727,3640.1,3640.0,10.0]
[1753456938727,7.5816,3640.1,3640.0,10.0]
[1753456938924,10.32877727,3640.1,3640.0,10.0]
[1753456939430,7.5806,3640.1,3640.0,10.0]
[1753456939664,10.32777727,3640.1,3640.0,10.0]
[1753456939958,7.5806,3640.1,3640.0,10.0]
[1753456940866,4.5806,3640.1,3640.0,10.0]
[1753456941224,7.32777727,3640.1,3640.0,10.0]
[1753456941832,11.82106844,3640.1,3640.0,10.0]
[1753456942036,12.10606844,3640.1,3640.0,10.0]
[1753456942236,12.65606844,3640.1,3640.0,10.0]
[1753456943971,19.78199206,3640.1,3640.0,10.0]
[1753456944179,19.78199236,3640.1,3640.0,10.0]
[1753456944676,19.49699236,3640.1,3640.0,10.0]
[1753456944972,19.41106844,3640.1,3640.0,10.0]
[1753456945136,19.41106844,3640.1,3640.0,10.008668]
[1753456945465,17.91777727,3640.1,3640.0,10.008668]
[1753456945670,18.35727727,3640.1,3640.0,10.008668]
[1753456945871,17.91977727,3640.1,3640.0,10.008668]
[1753456946069,14.6226,3640.1,3640.0,10.008668]
[1753456946270,18.64427727,3640.1,3640.0,10.008668]
[1753456946699,18.75380376,3640.1,3640.0,10.008668]
[1753456947486,17.47930376,3640.1,3640.0,10.008668]
[1753456947891,17.39337727,3640.1,3640.0,10.008668]
[1753456948395,17.83287727,3640.1,3640.0,10.008668]
[1753456948600,17.39337727,3640.1,3640.0,10.008668]
[1753456949391,17.94337727,3640.1,3640.0,10.008668]
[1753456949599,18.66787727,3640.1,3640.0,10.008668]
[1753456949971,18.66787727,3640.1,3639.6,0.001]
[1753456949972,3.29747918,3639.7,3639.6,0.001]
[1753456950172,17.96516395,3639.7,3639.6,0.001]
[1753456950470,18.74811848,3639.7,3639.6,0.001]
[1753456950675,20.39711848,3639.7,3639.6,0.001]
[1753456951498,13.58461848,3639.7,3639.6,0.001]
[1753456951701,13.58461848,3639.7,3639.6,1e-08]
[1753456951702,18.37717918,3639.7,3639.6,1e-08]
[1753456951996,20.60452421,3639.7,3639.6,1e-08]
[1753456952301,20.75615733,3639.7,3639.6,1e-08]
[1753456953188,20.75616928,3639.7,3639.6,1e-08]
[1753456955899,20.31852421,3639.7,3639.6,1e-08]
[1753456956302,16.03181421,3639.7,3639.6,1e-08]
[1753456956511,20.31852421,3639.7,3639.6,1e-08]
[1753456956717,20.60352421,3639.7,3639.6,1e-08]
[1753456957398,13.79202421,3639.7,3639.6,1e-08]
[1753456957728,20.24731893,3639.7,3639.6,1e-08]
[1753456958086,20.39866069,3639.7,3639.6,1e-08]
[1753456958782,20.60824939,3639.7,3639.6,1e-08]
[1753456959206,20.45690763,3639.7,3639.6,1e-08]
[1753456959518,20.17190763,3639.7,3639.6,1e-08]
[1753456961094,15.30560763,3639.7,3639.6,1e-08]
[1753456961298,19.74260763,3639.7,3639.6,1e-08]
[1753456961705,15.30560763,3639.7,3639.6,1e-08]
[1753456961905,10.02066788,3639.7,3639.6,0.48770001]
[1753456962108,14.43306788,3639.7,3639.6,0.95060001]
[1753456962337,17.43306788,3639.7,3639.6,0.48770001]
[1753456963007,17.43306788,3639.7,3639.6,1e-08]
[1753456963211,18.00666788,3639.7,3639.6,1e-08]
[1753456963609,13.57066788,3639.7,3639.6,1e-08]
[1753456963809,2.74917727,3640.1,3639.6,0.95060001]
[1753456963810,0.002,3640.1,3639.6,0.95060001]
[1753456964021,4.435,3640.0,3639.7,0.9506]
[1753456964345,2.74747918,3639.7,3639.6,1e-08]
[1753456964650,17.82356395,3639.7,3639.6,1e-08]
[1753456964811,10.04,3639.7,3639.6,0.95060001]
[1753456965152,14.474,3639.7,3639.6,0.95060001]
[1753456965442,4.434,3639.7,3639.6,3.69815468]
[1753456966522,4.434,3639.7,3639.6,0.95060001]
[1753456970143,4.434,3639.7,3639.6,3.69815468]
[1753456970448,4.434,3639.7,3639.6,0.95060001]
[1753456970646,4.434,3639.7,3639.6,4.16222272]
[1753456972349,4.434,3639.7,3639.6,3.69815468]
[1753456972657,0.1376,3640.0,3639.9,3.56632822]
[1753456972854,4.5686,3640.0,3639.9,3.56632822]
[1753456973059,0.002,3640.1,3640.0,2.74725274]
[1753456973435,0.002,3640.1,3640.0,3.69785274]
[1753456973640,0.002,3640.1,3640.0,4.43803084]
[1753456974132,0.002,3640.1,3640.0,5.27520336]
[1753456974333,0.002,3640.1,3640.0,5.41280336]
[1753456975560,0.002,3640.9,3640.8,3.53384908]
[1753456975735,0.002,3640.9,3640.8,3.67144908]
[1753456975949,0.002,3640.9,3640.8,4.62204908]
[1753456976558,0.002,3640.9,3640.8,5.35893398]
[1753456976765,0.002,3640.9,3640.8,5.38640047]
[1753456976966,0.002,3641.2,3641.1,2.74642278]
[1753456977152,0.002,3641.2,3641.1,3.728687]
[1753456977329,0.002,3641.2,3641.1,4.679287]
[1753456977629,0.002,3641.2,3641.1,5.77022022]
[1753456977825,0.002,3641.2,3641.1,5.742756]
[1753456978045,0.002,3641.6,3641.5,2.7461211]
[1753456978224,0.002,3641.6,3641.5,3.59078231]
[1753456978427,0.002,3641.6,3641.5,7.54138231]
[1753456978665,0.002,3641.6,3641.5,9.26011526]
[1753456979761,0.002,3641.6,3641.5,13.68711526]
[1753456980128,4.427,3643.3,3641.8,2.74589488]
[1753456980359,2.74490781,3643.2,3641.8,3.58595382]
[1753456980566,4.427,3643.3,3641.8,4.53655382]
[1753456980738,0.4293,3643.5,3642.1,0.7555]
[1753456981069,6.6246,3643.8,3641.8,2.59824446]
[1753456981070,4.425,3643.4,3642.9,0.7555]
[1753456981436,0.45678477,3643.3,3642.5,0.4877]
[1753456981637,0.02748477,3643.3,3643.0,2.74492753]
[1753456981858,4.425,3643.4,3642.6,0.7636]
[1753456982057,4.425,3643.4,3643.1,0.4877]
[1753456982379,0.89928477,3643.3,3642.6,1.2513]